Cogmind - Beta 15 @@@ ROGUE MODE // 2025.05.18 @ 17:34:37 Player: Epsilon 11 Result: Destroyed by S-43 Plague with Heavy Machine Gun Performance ------------- Evolutions (7) 3500 Regions Visited (26) 5200 Robots Destroyed (332) 1660 Value Destroyed (17750) 17750 Prototype IDs (39) 780 Alien Tech Used (1) 200 Bonus (9464) 9464 TOTAL SCORE: 38554 Bonus ------- High Alert Combat Kills 3435 Follower Combat Kills 3250 Entered Garrisons 1000 Used RIF Installer 2000 Met Data Miner 300 Scanned by Researcher 500 Friendly Fire -1021 Cogmind --------- Core Integrity 0/1300 Matter 197/300 Energy 68/100 System Corruption 16% Temperature Cool (2) Movement Flying (40) Location -3/Quarantine Parts ------- > --- POWER (1) -------- (None) > --- PROPULSION (4) --- Impulse Thruster > --- UTILITY (14) ----- Relay Coupler [NC] (9) Relay Coupler [Cutter] (39) Relay Coupler [Heavy] (13) > --- WEAPON (3) ------- (None) > --- INVENTORY (5) ---- Particle Reactor Advanced Coolant Injector Improved Plasma Cutter Peak State ------------ > --- POWER ------------ Reinforced Quantum Reactor > --- PROPULSION ------- Biometal Heavy Treads Biometal Heavy Treads > --- UTILITY ---------- Advanced Cryofiber Web Experimental Heat Sink Huge Storage Unit Improved Target Analyzer Advanced Transmission Jammer Improved Heavy Armor Plating Graphene Brace Advanced Force Field Relay Coupler [NC] Relay Coupler [Cutter] Relay Coupler [Demolisher] Relay Coupler [Specialist] Relay Coupler [Heavy] > --- WEAPON ----------- Enhanced Quantum Rifle Enhanced Quantum Rifle Enhanced Hardcell Cannon > --- INVENTORY -------- F-cell Engine Particle Reactor Light Quantum Reactor Biometal Heavy Treads Experimental Biometal Heavy Treads Advanced Coolant Injector Active Sensor Suite Quantum Capacitor Heavy Armor Plating Improved Medium Armor Plating Advanced System Restoration Module Advanced System Restoration Module Enhanced Nova Cannon Enhanced Hardcell Cannon Enhanced Hardcell Cannon Enhanced Hardcell Cannon Fusion Bomb Launcher Improved Remote Datajack Improved Plasma Cutter [Rating: 162] Favorites ----------- Power Reinforced Antimatter Reactor Engine Improved Deuterium Engine Power Core Neutrino Core Reactor Reinforced Antimatter Reactor Propulsion Improved Titanium Leg Treads Armored Heavy Treads Leg Improved Titanium Leg Wheel Compact Wheel Hover Unit Gravmag System Flight Unit Impulse Thruster Array Utility Core Analyzer Device Advanced Cooling System Storage Large Storage Unit Processor Core Analyzer Hackware Relay Coupler [NC] Protection Improved Medium Armor Plating Weapon Enhanced Hardcell Cannon Energy Gun Cooled Pulse Rifle Energy Cannon Nova Cannon Ballistic Gun Gauss Rifle Ballistic Cannon Enhanced Hardcell Cannon Launcher Mini Grenade Launcher Special Weapon Improved Remote Datajack Slashing Weapon Phasing Sabre Piercing Weapon Enhanced Force Lance Special Melee Weapon Datajack Build | -11 -10 -10 -8 -8 -8 -8 -7 -7 -7 -7 -6 -6 -6 -6 -6 -5 -5 -5 -5 -5 -4 -4 -4 -4 -3 -3 ------- Run | Yrd Mat Sub Mat Gar Mat Gar Fac Low Low Dat Pro Fac Low Low Zio Pro Fac Gar Fac Gar Fac Gar Fac Arm Res Qua Slots Evolved 14 | . . . 4 . . . 2 . . . . 2 . . . . 2 . . . 2 . . . 2 . Power . | . . . . . . . . . . . . . . . . . . . . . . . . . . . Propulsion 2 | . . . 1 . . . 1 . . . . . . . . . . . . . . . . . . . Utility 12 | . . . 3 . . . 1 . . . . 2 . . . . 2 . . . 2 . . . 2 . Weapon . | . . . . . . . . . . . . . . . . . . . . . . . . . . . Parts Attached 328 | 6 5 12 20 3 6 9 16 6 7 . 3 7 13 2 2 9 14 18 13 15 22 24 24 46 26 . Power 31 | 1 1 1 1 . 1 1 1 2 1 . 1 . . 1 . 1 . 1 . . 2 3 1 9 2 . Engine 9 | 1 . 1 . . 1 1 1 1 1 . 1 . . . . . . . . . . . . 1 . . Core 9 | . 1 . 1 . . . . 1 . . . . . 1 . 1 . . . . . 2 . 2 . . Reactor 13 | . . . . . . . . . . . . . . . . . . 1 . . 2 1 1 6 2 . Propulsion 73 | 2 . 3 8 . . 2 3 2 2 . . 4 1 . . 4 7 3 2 3 4 6 6 6 5 . Treads 20 | . . . . . . . . . 1 . . . . . . . . 2 . 3 . 1 5 6 2 . Leg 43 | . . . 7 . . 2 3 2 1 . . 4 . . . 4 7 1 2 . 4 5 1 . . . Wheel 5 | 2 . 3 . . . . . . . . . . . . . . . . . . . . . . . . Hover 1 | . . . . . . . . . . . . . 1 . . . . . . . . . . . . . Flight 4 | . . . 1 . . . . . . . . . . . . . . . . . . . . . 3 . Utility 132 | 1 2 3 3 2 3 3 6 . 3 . 1 3 8 1 1 2 4 9 6 9 13 10 11 15 13 . Device 50 | . . 1 2 1 1 1 2 . . . 1 1 3 1 . . 3 3 3 1 4 2 3 10 7 . Storage 9 | 1 1 . . . 1 . . . . . . . 1 . . . . . 1 . 1 . 2 . 1 . Processor 10 | . . . . . . 1 1 . 1 . . . 2 . 1 . . . 1 . 1 . . 1 1 . Hackware 27 | . . . . . . . 2 . 1 . . 1 2 . . . . 2 . 6 5 5 1 1 1 . Protection 36 | . 1 2 1 1 1 1 1 . 1 . . 1 . . . 2 1 4 1 2 2 3 5 3 3 . Artifact . | . . . . . . . . . . . . . . . . . . . . . . . . . . . Weapon 92 | 2 2 5 8 1 2 3 6 2 1 . 1 . 4 . 1 2 3 5 5 3 3 5 6 16 6 . Energy Gun 27 | . 1 4 1 . . 2 4 . 1 . 1 . 1 . . . 1 1 1 1 1 . 2 3 2 . Energy Cannon 16 | . . 1 . . . . . . . . . . . . 1 . . 2 4 1 . 3 . 3 1 . Ballistic Gun 20 | 2 . . 4 . 2 . 1 1 . . . . 2 . . . 1 . . 1 1 1 2 2 . . Ballistic Cannon 10 | . . . 1 . . . . . . . . . . . . . 1 1 . . . . 2 3 2 . Launcher 5 | . 1 . 1 . . . . 1 . . . . . . . . . . . . . . . 2 . . Special Weapon 9 | . . . 1 . . 1 . . . . . . . . . 2 . 1 . . . 1 . 3 . . Impact Weapon . | . . . . . . . . . . . . . . . . . . . . . . . . . . . Slashing Weapon 3 | . . . . . . . 1 . . . . . 1 . . . . . . . 1 . . . . . Piercing Weapon 1 | . . . . . . . . . . . . . . . . . . . . . . . . . 1 . Special Melee Weapon 1 | . . . . 1 . . . . . . . . . . . . . . . . . . . . . . Unidentified Prototypes 21 | . . . 4 . . . 1 . . . . . . 1 . 1 . . 5 . 1 . . 4 4 . Corrupted Parts 2 | . . . . . . . . . . . 1 . . . . . . . . . . . . . 1 . System Corruption 12 | . . . . . . . . . . . 6 . . . . . . . . . . . . . 6 . Parts Lost 126 | . . 5 1 . . 3 6 . 6 . 2 11 3 . . 3 . 6 . 5 6 15 2 19 26 7 Power 13 | . . 2 . . . . 1 . . . 1 1 . . . 1 . . . . . 2 . 3 1 1 Propulsion 28 | . . 1 . . . 1 3 . 3 . 1 3 . . . . . 1 . 1 1 4 . 2 5 2 Utility 56 | . . 2 . . . 2 1 . 1 . . 4 3 . . 2 . 3 . 3 3 5 2 12 12 1 Weapon 29 | . . . 1 . . . 1 . 2 . . 3 . . . . . 2 . 1 2 4 . 2 8 3 Highest Loss Streak 13 | . . 2 1 . . 2 3 . 4 . 2 7 2 . . 1 . 4 . 3 4 6 1 7 13 7 To Critical Strikes 1 | . . . . . . . . . . . . . . . . . . 1 . . . . . . . . Average Backups 11 | . 1 5 7 7 11 14 14 14 14 15 14 12 4 2 3 3 4 4 10 13 13 13 20 21 15 4 Power . | . . . . 1 1 1 . . . . . . . . . . . 1 1 1 1 . 1 2 2 1 Propulsion 1 | . . . . 2 2 . . . . . . 1 . . . . . . 1 1 2 . 2 3 2 . Utility 6 | . . 2 . 1 4 9 10 10 9 10 9 7 1 1 1 1 . . 4 8 8 10 14 9 4 1 Weapon 1 | . . 1 3 1 1 1 1 1 2 3 3 2 1 . . . . . . . . . 1 4 4 . Tool/Special . | . . . . . . . . . . . . . . . . . . . . . . . . . . . Unused Backups 29 | . . . . . 1 2 1 . 1 . . 7 . . . . . . 3 6 1 2 2 2 1 . Power 3 | . . . . . 1 . . . . . . . . . . . . . . 1 . . 1 . . . Propulsion 8 | . . . . . . . . . . . . 2 . . . . . . 1 2 1 1 . 1 . . Utility 14 | . . . . . . 1 1 . . . . 5 . . . . . . 1 3 . 1 . 1 1 . Weapon 2 | . . . . . . . . . . . . . . . . . . . 1 . . . 1 . . . Tool/Special 2 | . . . . . . 1 . . 1 . . . . . . . . . . . . . . . . . Average Slot Usage (%) 86 | . 95 82 91 100 98 99 98 89 93 87 89 82 25 46 55 65 85 81 80 89 95 93 90 87 77 32 Engine 2 | . 12 11 . . 7 8 6 2 6 7 6 5 . . . . . . . . . . . . . . Core 1 | . 1 1 8 9 1 . . 2 . . . . . 2 6 2 5 2 . . . 3 . . . . Reactor 1 | . . . . . . . . . . . . . . . . . . 2 5 5 4 1 4 4 3 2 Treads 4 | . . . . . . . . . 1 7 7 . . . . . . 4 10 13 7 . 11 12 7 . Leg 12 | . . . 22 27 26 26 29 21 24 15 12 22 . . . 16 22 12 . . 10 17 4 . . . Wheel 1 | . 28 27 2 . . . . . . . . . . . . . . . . . . . . . . . Device 12 | . . 2 16 18 18 17 12 7 6 . 7 5 3 9 13 13 20 16 13 15 12 4 . 15 18 2 Storage 4 | . 14 2 8 9 9 9 7 7 7 7 7 5 . . . . . . 3 5 5 5 5 5 4 . Processor 4 | . . . . . . 7 7 7 9 15 15 11 10 13 15 10 5 5 5 5 5 5 2 . 2 . Hackware 15 | . . . . . . . 5 15 15 15 15 11 8 6 6 6 5 8 11 14 26 39 41 31 23 13 Protection 8 | . 9 9 14 18 18 10 10 7 5 7 . 5 . . . 2 11 13 15 11 9 3 4 3 2 . Energy Gun 3 | . 1 20 1 . . 5 10 7 5 2 12 5 . . . . 1 . . . 4 . . 3 2 . Energy Cannon 3 | . . 3 2 . . . . . . . . . . . . . . 4 13 13 5 6 1 2 . . Ballistic Gun 3 | . 17 . 10 4 15 9 1 2 1 . . . . . . . 2 . . . 2 3 7 1 . . Ballistic Cannon 1 | . . . . . . . . . . . . . . . . . 1 2 . . . . 2 6 5 . Special Weapon 1 | . . . 1 . 1 1 1 . . . . . . . . . . . . 2 2 2 2 1 1 2 Slashing Weapon 1 | . . . . . . . . . 3 7 2 4 . 6 6 5 3 1 . . . . . . . . Peak Build Rating 162 | 6 10 15 38 38 43 46 57 48 50 44 44 66 29 55 66 70 94 108 113 111 108 106 120 145 162 73 Average Rating 78 | 4 7 10 30 34 40 44 53 44 46 41 42 57 18 41 57 62 85 97 108 105 101 93 111 127 137 57 On Entrance 57 | . 6 10 12 38 33 43 44 40 48 44 44 40 7 28 55 61 68 94 99 111 102 104 93 112 140 73 Naked Turns . | . . . . . . . . . . . . . . . . . . . . . . . . . . . Heaviest Build 168 | 13 23 33 38 32 56 56 55 44 43 36 39 59 8 28 28 40 53 87 108 108 89 90 135 153 168 30 Greatest Support 160 | 26 26 36 60 60 60 60 80 65 65 30 30 80 9 9 15 61 92 120 120 120 117 96 145 155 160 31 Greatest Overweight (x) 5 | . . 5 5 . 1 . . 1 1 1 1 2 2 3 3 2 . 1 1 . 1 1 1 4 1 . Average Overweight (x) . | . . . . . . . . . . 1 1 . . . 1 . . . . . . . . . . . Largest Inventory Capacity 25 | 8 10 10 8 8 15 15 15 15 15 15 15 15 5 5 5 5 5 5 15 15 15 15 25 25 25 5 Average Capacity 13 | 7 8 5 7 8 12 15 15 15 15 15 15 14 5 5 5 5 5 5 11 15 15 15 22 25 22 5 Most Carried 25 | . 4 8 8 8 15 15 15 15 15 15 15 14 5 5 5 5 5 5 15 15 15 15 25 25 25 5 Average Carried 12 | . 1 5 7 7 11 14 14 14 14 15 14 12 4 3 3 3 4 4 10 13 13 13 21 23 18 4 Final Capacity 25 | 8 10 5 8 8 15 15 15 15 15 15 15 5 5 5 5 5 5 5 15 15 15 15 25 25 5 5 Final Carried 25 | . 4 5 8 8 15 15 14 15 15 15 15 5 5 2 5 2 5 5 15 15 14 15 25 24 5 3 Class Distribution -------------------- 29% | Mutant 18% | Botlord-Tank 11% | Bothacker-Tank 9% | Bothacker-Mutant 9% | Derelict-Mutant 5% | Botlord-Gunner 4% | Commander-Mutant 4% | Scavenger-Mutant 4% | Scavenger-Tank Dominant Class ---------------- Mutant | -10/Materials Mutant | -10/Subcaves Mutant | -8/Materials Commander-Mutant | -8/Garrison Mutant | -8/Materials Mutant | -8/Garrison Bothacker-Mutant | -7/Factory Bothacker-Mutant | -7/Lower Caves Bothacker-Mutant | -7/Lower Caves Mutant | -7/Data Miner Mutant | -6/Proximity Caves Mutant | -6/Factory Mutant | -6/Lower Caves Mutant | -6/Lower Caves Mutant | -6/Zion Derelict-Mutant | -5/Proximity Caves Derelict-Mutant | -5/Factory Scavenger-Mutant | -5/Garrison Scavenger-Tank | -5/Factory Botlord-Tank | -5/Garrison Botlord-Tank | -4/Factory Botlord-Gunner | -4/Garrison Botlord-Tank | -4/Factory Botlord-Tank | -4/Armory Bothacker-Tank | -3/Research Mutant | -3/Quarantine Resources | -11 -10 -10 -8 -8 -8 -8 -7 -7 -7 -7 -6 -6 -6 -6 -6 -5 -5 -5 -5 -5 -4 -4 -4 -4 -3 -3 ----------- Run | Yrd Mat Sub Mat Gar Mat Gar Fac Low Low Dat Pro Fac Low Low Zio Pro Fac Gar Fac Gar Fac Gar Fac Arm Res Qua Matter Collected 12753 | 252 136 250 630 . 614 760 445 114 235 . 80 79 160 147 80 488 989 955 358 495 479 904 1172 1560 1199 172 Remotely . | . . . . . . . . . . . . . . . . . . . . . . . . . . . Salvage Created 15028 | . 195 473 799 . 603 690 844 214 320 . 85 139 136 117 25 467 837 470 961 1255 979 1202 1085 1552 1408 172 Parts 705 | . 22 31 61 . 24 44 35 12 10 . 9 7 10 7 2 13 28 15 37 53 28 51 44 76 72 14 Haulers Intercepted 4 | . . . 2 . . . . . . . . . . . . . . . 1 . . . 1 . . . Recyclers Shooed 8 | . 1 . 1 . . . . . . . . . . . . . . . 2 . . . 1 . 3 . Parts Field Recycled . | . . . . . . . . . . . . . . . . . . . . . . . . . . . Retrieved Matter . | . . . . . . . . . . . . . . . . . . . . . . . . . . . Parts Self-Destructed 58 | . . 18 . . . . . 8 6 . 4 . 7 3 4 8 . . . . . . . . . . Prevented 6 | . . . . . . . . . . . 5 . . . . 1 . . . . . . . . . . Kills | -11 -10 -10 -8 -8 -8 -8 -7 -7 -7 -7 -6 -6 -6 -6 -6 -5 -5 -5 -5 -5 -4 -4 -4 -4 -3 -3 ------- Run | Yrd Mat Sub Mat Gar Mat Gar Fac Low Low Dat Pro Fac Low Low Zio Pro Fac Gar Fac Gar Fac Gar Fac Arm Res Qua Combat Hostiles Destroyed 287 | . 8 16 26 . 10 21 16 4 11 . 2 2 4 . . 10 8 5 18 21 11 16 12 28 36 2 Melee 22 | . . . . . . . 1 . 5 . . . . . . 5 8 1 . . . . . . . 2 Guns 93 | . 2 8 9 . 10 14 13 . . . 1 2 4 . . . . . 1 . 2 10 6 8 3 . Cannons 88 | . . 1 3 . . . . . . . . . . . . . . 4 13 17 7 2 4 19 18 . AOE 71 | . 6 6 12 . . 7 2 4 6 . . . . . . 5 . . 4 1 . 1 1 1 15 . Classes Destroyed 28 | . 4 5 5 . 1 4 . . . . 1 . 1 2 . 1 . . . . 1 . . 1 1 1 Worker 9 | . 1 . . . . . 1 . . . . . . . . . 1 . 1 . . . 3 . 2 . Builder 8 | . . . 1 . . . . . . . . . . . . . . . . . . . 2 . 5 . Hauler 4 | . . . 2 . . . . . . . . . . . . . . . 1 . . . 1 . . . Recycler 7 | . 1 . 1 . . . . . . . . . . . . . 2 . . . 2 . . . 1 . Minesweeper 1 | . . . . . . . . . . . . . . 1 . . . . . . . . . . . . Mechanic 2 | . . . 1 . . . . . . . . . . . . . . . . . . . . 1 . . Drone 1 | . . . . . . . . . . . 1 . . . . . . . . . . . . . . . Turret 1 | . . 1 . . . . . . . . . . . . . . . . . . . . . . . . Watcher 6 | . . . 1 . . . 1 . . . . . . . . . 2 . . . . 1 . 1 . . Swarmer 85 | . 6 7 16 . 1 6 . 4 6 . . . 4 . . 1 . 1 4 3 . 9 . 1 14 2 Saboteur 1 | . . . . . . . . . . . . . . . . . . . . . . . . 1 . . Grunt 75 | . 2 1 6 . 7 2 10 . 4 . . 1 . . . 7 4 . 6 6 . 4 2 5 8 . Brawler 8 | . . . . . . 2 2 . . . . . . . . . . 1 1 . . 2 . . . . Duelist 5 | . . . . . . 1 . . . . . . . . . . . 1 1 . . . . 1 1 . Protector 1 | . . . . . . 1 . . . . . . . . . . . . . . . . . . . . Researcher 2 | . . . . . . . . . . . . . . . . . . . . . . . . . . 2 Sentry 39 | . . 1 3 . 3 5 2 . 1 . 1 1 . . . 1 1 1 . 4 3 . 6 5 1 . Demolisher 1 | . . . . . . 1 . . . . . . . . . . . . . . . . . . . . Specialist 6 | . . . . . . . . . . . . . . . . . . . . . 1 . . 4 1 . Hunter 13 | . . . 1 . . . . . . . . . . . . . . . . 1 2 . 1 4 4 . Programmer 41 | . . . . . . 3 2 . . . . . . . . . 3 . 6 6 5 2 2 7 5 . Heavy 1 | . . . . . . . . . . . . . . . . . . . . . . . . . 1 . Behemoth 6 | . . . . . . . . . . . . . . . . 1 . 1 . 1 . 1 1 . 1 . Artisan 1 | . . 1 . . . . . . . . . . . . . . . . . . . . . . . . Subdweller 7 | . . 7 . . . . . . . . . . . . . . . . . . . . . . . . Scientist 1 | . . 1 . . . . . . . . . . . . . . . . . . . . . . . . Decomposer 1 | . . . . . . . . 1 . . . . . . . . . . . . . . . . . . Samaritan 2 | . . . . . . . . . . . . . . 2 . . . . . . . . . . . . Tinkerer 2 | . . . . . . . . . . . . . 1 . 1 . . . . . . . . . . . Thug 1 | . . . . . . . . . . . . . . . . . . . 1 . . . . . . . Butcher 1 | . . . . . 1 . . . . . . . . . . . . . . . . . . . . . Best Kill Streak 18 | . 8 4 7 . 2 3 5 4 3 . 1 2 4 1 1 4 2 1 4 6 3 3 5 3 18 3 Combat Bots Only 14 | . 6 4 7 . 2 3 4 4 3 . 1 2 4 . . 4 2 1 4 6 3 3 2 3 14 2 Max Kills in Single Turn 5 | . 3 2 3 . 3 3 3 2 2 . 1 1 1 1 1 2 1 1 3 1 1 1 3 2 5 1 Gunslinging . | . . . . . . . . . . . . . . . . . . . . . . . . . . . Exploded 3 | . 2 2 3 . . 3 2 2 2 . . . . . . 2 . . 3 1 . 1 1 1 3 . Melee 1 | . . . . . . . 1 . 1 . . . . . . 1 1 1 . . . . . . . 1 Uniques/NPCs Destroyed . | . . . . . . . . . . . . . . . . . . . . . . . . . . . Combat | -11 -10 -10 -8 -8 -8 -8 -7 -7 -7 -7 -6 -6 -6 -6 -6 -5 -5 -5 -5 -5 -4 -4 -4 -4 -3 -3 -------- Run | Yrd Mat Sub Mat Gar Mat Gar Fac Low Low Dat Pro Fac Low Low Zio Pro Fac Gar Fac Gar Fac Gar Fac Arm Res Qua Hostile Shots Fired 2723 | . 21 83 89 . 57 142 160 5 52 . 91 137 31 . . 66 78 193 83 148 172 165 131 283 454 82 Missed 899 | . 4 22 29 . 17 53 64 2 19 . 35 51 9 . . 26 38 77 21 41 63 50 43 71 140 24 Hits 1824 | . 17 61 60 . 40 89 96 3 33 . 56 86 22 . . 40 40 116 62 107 109 115 88 212 314 58 Melee 30 | . . . . . . . 3 . . . . 12 . . . . . 12 1 . . . . 2 . . Projectile 1794 | . 17 61 60 . 40 89 93 3 33 . 56 74 22 . . 40 40 104 61 107 109 115 88 210 314 58 AOE 18 | . . . . . . 11 . . . . . . . . . . 2 . 2 . . . . 3 . . Critical Strikes 88 | . 1 1 1 . 1 9 3 . 1 . . 4 . . . 3 2 9 5 4 12 5 3 4 18 2 Actively Blocked 27 | . . . . . . . . . . . . . . . . . . . . . 6 . . 4 17 . Part Disruptions 4 | . . . . . . . . . . . . . . . . . . . . . . . 1 3 . . Damage Taken 33655 | . 200 863 778 . 599 1584 1484 55 601 . 396 1423 340 . . 811 828 2245 1431 2035 1920 2506 1936 3946 6383 1291 Core 4322 | . 24 191 122 . 57 282 151 31 164 . 37 346 177 . . 133 62 225 91 36 146 231 93 410 703 610 Absorbed by Shields 126 | . . . . . . . . . . . . . . . . . . . . . . . . . 126 . Reduced by Siege Mode 422 | . . . . . . . . . . . . . . . . . . . 24 83 . . 16 81 218 . Redirected to Shielding 135 | . . . . . . . . . . . . . . . . . . . . . . . . 58 77 . Ignored by Resistances 348 | . . . . . . . . . . . . . . . . . . . 61 108 21 24 120 14 . . Regen/Repaired (Parts) 1674 | . . . 324 . 147 . 244 . . . . . . . . . 186 . 523 . . . 250 . . . Core Remaining (%) 39 | 100 . 14 . . . 16 . . . . 45 . . . . 22 . . . 58 . . . 23 . . Volleys Fired 1084 | . 15 51 55 . 36 130 54 12 11 . 12 12 7 . . 6 4 76 46 91 69 118 66 116 94 3 Largest 3 | . 2 2 2 . 2 2 2 1 1 . 2 2 2 . . 2 1 2 3 3 3 3 3 3 3 1 Hottest 334 | . 40 140 140 . 56 134 120 39 39 . 110 115 53 . . . 65 218 275 229 297 266 156 334 243 94 Shots Fired 1771 | . 23 83 91 . 72 178 95 12 11 . 21 19 10 . . 9 4 78 85 145 132 168 124 227 182 2 Gun 861 | . 18 58 63 . 72 149 87 10 . . 21 19 10 . . . 4 22 1 1 54 83 61 86 40 2 Cannon 659 | . . 15 19 . . . . . . . . . . . . . . 47 81 118 54 58 36 108 123 . Launcher 51 | . 5 10 9 . . 11 . 2 7 . . . . . . . . . . . . . . 1 6 . Special 200 | . . . . . . 18 8 . 4 . . . . . . 9 . 9 3 26 24 27 27 32 13 . Kinetic 634 | . 18 . 57 . 72 86 5 1 . . . . 10 . . . . 31 . . 11 55 86 98 104 . Thermal 750 | . . 73 25 . . 63 82 9 . . . 12 . . . . . 38 65 90 97 40 1 94 59 2 Explosive 59 | . 5 10 9 . . 11 . 2 7 . . . . . . 9 . . . . . . . . 6 . Electromagnetic 138 | . . . . . . . . . . . 21 7 . . . . 4 . 17 29 . 46 10 4 . . Robot Hit Streak 20 | . 3 12 7 . 11 12 12 4 8 . 5 10 4 . . 10 1 16 11 12 9 10 20 18 13 1 Robot Miss Streak 6 | . 3 2 3 . 2 6 2 2 2 . 2 4 3 . . 1 2 5 3 4 4 3 4 4 3 2 Penetration Max 2 | . . . . . 1 1 1 . . . . . . . . . . . . . . 1 2 1 . . Secondary Targets 9 | . . 1 . . 2 3 . . . . . . 1 . . . . . . . . 1 . 1 . . Max Gunslinging Chain 1 | . . 1 . . 1 1 . . . . . . 1 . . . . . . . . 1 . 1 . . Capacitor 9 | . . . . . . . . . . . . . . . . . . . . . . . . . 9 . Shots Hit Robots 1206 | . 13 54 52 18 47 78 78 6 15 . 16 14 9 3 2 27 38 55 50 84 86 97 88 147 123 6 Core Hits 553 | . 14 28 50 . 18 35 31 9 12 . 3 5 6 3 1 20 16 16 30 36 27 28 30 60 71 4 Critical Kills 18 | . . 1 2 . 1 . . . . . . . 1 . . . . . . 3 1 . 7 2 . . Critical Parts Destroyed 16 | . . 1 . . 2 1 . . . . . . . . . . . . . . . 2 9 1 . . Critical Strikes 72 | . . 3 2 . 3 1 2 . . . . 1 1 . . 5 7 3 1 4 2 2 20 9 4 2 Burn 3 | . . . . . . . 2 . . . . . . . . . . . . . 1 . . . . . Meltdown 7 | . . 1 2 . . . . . . . . . . . . . . . . 3 1 . . . . . Destroy 32 | . . 2 . . 3 1 . . . . . . 1 . . . . . . . . 2 20 3 . . Blast 11 | . . . . . . . . . . . . . . . . . . 2 . . . . . 5 4 . Corrupt 2 | . . . . . . . . . . . . . . . . . . . 1 1 . . . . . . Sever 15 | . . . . . . . . . . . . 1 . . . 5 7 1 . . . . . 1 . . Impale 2 | . . . . . . . . . . . . . . . . . . . . . . . . . . 2 Melee Attacks 165 | . . . . 18 . . 9 . 31 . 2 5 3 3 3 27 41 9 . . . . . . 2 12 Impact . | . . . . . . . . . . . . . . . . . . . . . . . . . . . Slashing 133 | . . . . . . . 9 . 31 . 2 5 3 3 3 27 41 9 . . . . . . . . Piercing 14 | . . . . . . . . . . . . . . . . . . . . . . . . . 2 12 Sneak Attacks 24 | . . . . 14 . . . . . . . . 1 3 1 . 4 . . . . . . . . 1 Combat Hostiles . | . . . . . . . . . . . . . . . . . . . . . . . . . . . Follow-up Attacks . | . . . . . . . . . . . . . . . . . . . . . . . . . . . Damage Inflicted 43863 | . 545 1451 1946 . 1116 1850 2262 433 912 . 296 267 354 232 118 2355 1823 1574 3108 2730 2165 2184 2305 5102 8339 396 Guns 13404 | . 100 797 842 . 1088 1339 1604 111 . . 156 206 149 . . . 46 514 23 28 1067 1112 1447 1848 853 74 Cannons 15720 | . . 110 257 . . . . . . . . . . . . . . 848 2054 2642 1054 1072 799 2976 3908 . Explosions 9786 | . 445 544 847 . . 511 467 322 625 . 65 . . . . 1281 . . 891 60 8 . . 217 3503 . Melee 4233 | . . . . . . . 158 . 287 . 75 61 205 232 118 786 1777 212 . . . . . . . 322 Ramming 417 | . . . . . 28 . 33 . . . . . . . . . . . 140 . 36 . 59 46 75 . Kinetic 12744 | . 100 . 765 . 1088 1019 120 . . . . . 149 . . . . 697 . . 237 918 1965 2238 3448 . Thermal 14765 | . . 907 334 . . 320 1951 111 . . 65 155 . . . . . 665 2040 2046 1884 390 28 2482 1313 74 Explosive 8587 | . 445 544 847 . . 511 . 322 625 . . . . . . 1281 . . 454 . 8 . . 47 3503 . Electromagnetic 2829 | . . . . . . . . . . . 156 51 . . . . 46 . 474 684 . 876 253 289 . . Impact . | . . . . . . . . . . . . . . . . . . . . . . . . . . . Slashing 4199 | . . . . . . . 158 . 287 . 75 61 205 232 118 1074 1777 212 . . . . . . . . Piercing 322 | . . . . . . . . . . . . . . . . . . . . . . . . . . 322 Highest Corruption 22 | . . . 1 1 3 12 4 4 4 4 10 3 3 3 3 . 4 4 17 22 5 11 11 9 8 16 Average Corruption 6 | . . . 1 1 1 10 4 4 4 4 5 2 3 3 3 . 3 4 9 20 3 8 9 7 4 10 Corruption Purged 19 | . . . . . . . . . . . . . . . . . . . . . . . 5 9 5 . Corruption Blocked . | . . . . . . . . . . . . . . . . . . . . . . . . . . . Effects 475 | . . . 4 8 12 36 22 10 10 4 16 2 6 3 1 . 5 25 68 65 15 50 57 26 27 3 Message Errors 107 | . . . 2 2 2 7 4 1 3 1 5 . . . . . . 9 22 14 2 8 14 5 5 1 Matter Fused 109 | . . . 2 4 4 9 5 4 2 . . . 1 1 . . . 4 15 12 2 14 18 5 7 . Heat Flow Errors 50 | . . . . 1 1 3 2 1 . 1 2 . 2 2 . . 3 2 7 5 2 4 6 1 5 . Energy Discharges 59 | . . . . 1 . 5 4 1 1 1 1 1 . . . . . 4 7 11 2 10 3 2 4 1 Parts Rejected 7 | . . . . . . 3 . . . . . . . . . . . . . 1 1 . . 1 1 . Parts Fused 6 | . . . . . . . . . . . . . . . 1 . . . 1 . 1 1 1 1 . . Data Loss (minor) 73 | . . . . . 4 5 3 1 2 1 3 . 2 . . . 2 3 8 12 5 6 9 3 4 . Data Loss (major) 25 | . . . . . 1 1 2 . 2 . 2 1 1 . . . . 1 3 2 . 1 5 2 1 . Misfires 14 | . . . . . . 1 1 1 . . 1 . . . . . . 1 1 4 . 3 . 1 . . Alerts 6 | . . . . . . . 1 . . . 1 . . . . . . . 2 . . 2 . . . . Weapon Failures 19 | . . . . . . 2 . 1 . . 1 . . . . . . 1 2 4 . 1 1 5 . 1 Overload Shots 21 | . . . . . . . 15 . . . . 2 . . . . . . . . . . . 4 . . Effects 1 | . . . . . . . . . . . . 1 . . . . . . . . . . . . . . Heat Surge 1 | . . . . . . . . . . . . 1 . . . . . . . . . . . . . . Overflow Damage 1490 | . 54 . 29 . . 21 82 72 44 . . . 50 . 25 34 163 . 143 50 94 27 . 41 531 30 Projectiles 389 | . . . . . . . . . . . . . . . . . . . 20 45 36 27 . 40 221 . Explosions 782 | . 54 . 29 . . 21 64 72 44 . . . . . . 9 . . 123 5 52 . . . 309 . Melee 319 | . . . . . . . 18 . . . . . 50 . 25 25 163 . . . 6 . . 1 1 30 Knockbacks 40 | . . . 4 . . . . . . . . . . . . . . 5 1 . 2 . 4 6 18 . Impact 4 | . . . . . . . . . . . . . . . . . . . 1 . 1 . . 1 1 . Kinetic 32 | . . . 4 . . . . . . . . . . . . . . 5 . . . . 4 5 14 . Secondary 4 | . . . . . . . . . . . . . . . . . . . . . 1 . . . 3 . Self-Inflicted Damage 881 | . 23 19 97 . . 78 199 6 60 . . . . . . . . . 58 . 112 . . 25 204 . Shots 19 | . 2 1 3 . . 3 2 1 1 . . . . . . . . . 1 . 1 . . 1 3 . Rammed 23 | . . . . . . . . . . . . . . . . . . . 9 . 1 . 4 3 6 . Targets Rammed 35 | . . . . . 5 . 6 . . . . . . . . . . . 9 . 1 . 4 3 7 . Kicked 11 | . . . . . 5 . 6 . . . . . . . . . . . . . . . . . . . Crushed 1 | . . . . . . . . . . . . . . . . . . . . . . . . . 1 . Highest Temperature 549 | . 53 144 197 183 155 189 211 102 12 . 236 277 244 255 . . 226 258 223 198 410 412 257 459 549 . Average Temperature 88 | . 27 35 88 93 89 50 39 57 12 . 57 102 111 111 . . 68 33 65 77 142 103 83 133 137 . Received Heat Transfer 5505 | . 84 219 198 . 315 135 573 . 189 . 87 111 . . . 289 174 327 219 462 147 223 304 816 633 . Effects 13 | . . . . . . . . . . . . . . . . . . . . . 2 3 . 6 2 . Shutdowns 3 | . . . . . . . . . . . . . . . . . . . . . . 1 . 1 1 . Energy Bleed 3 | . . . . . . . . . . . . . . . . . . . . . . 2 . 1 . . Interference 5 | . . . . . . . . . . . . . . . . . . . . . 2 . . 3 . . Matter Decay 1 | . . . . . . . . . . . . . . . . . . . . . . . . . 1 . Short Circuit 1 | . . . . . . . . . . . . . . . . . . . . . . . . 1 . . Siege Activations 25 | . . . . . . . . . . . . . . . . . . . 3 3 . . 3 7 9 . Total Turns 362 | . . . . . . . . . . . . . . . . . . . 31 87 . . 67 54 123 . Longest Duration 42 | . . . . . . . . . . . . . . . . . . . 15 42 . . 27 18 29 . Martial Activations . | . . . . . . . . . . . . . . . . . . . . . . . . . . . Shielding Activations 2 | . . . . . . . . . . . . . . . . . . . . . . 2 . . . . Total Turns 73 | . . . . . . . . . . . . . . . . . . . . . . 73 . . . . Longest Duration 53 | . . . . . . . . . . . . . . . . . . . . . . 53 . . . . Robots Disrupted 2 | . . . . . . . . . . . 1 . . . . . . . 1 . . . . . . . Combat Hostiles 2 | . . . . . . . . . . . 1 . . . . . . . 1 . . . . . . . Robots Corrupted 7 | . . . . . . . . . . . 1 . . . . . . . . . 1 3 1 1 . . Combat Hostiles 5 | . . . . . . . . . . . 1 . . . . . . . . . . 3 1 . . . Parts Fried 18 | . . . . . . . . . . . . . . . . . . . 1 2 1 10 2 2 . . Impact Corruptions 3 | . . . . . . . . . . . . . . . . . . . . . 1 . . 1 1 . Robots Melted 8 | . . 1 2 . . . . . . . . . . . . . . . . 3 2 . . . . . Combat Hostiles 8 | . . 1 2 . . . . . . . . . . . . . . . . 3 2 . . . . . Parts Melted 52 | . . 3 4 . . 2 10 . . . . . . . . . 1 . 1 16 5 2 1 5 2 . Heat Transferred 17987 | . . 1293 422 . . 592 2898 222 . . 50 272 . . . . . 962 1988 2306 2495 550 37 2420 1406 74 Parts Sabotaged 4 | . . . . . . . . . . . . . . . . . . . . . . . . 4 . . Parts Stolen . | . . . . . . . . . . . . . . . . . . . . . . . . . . . Parts Stripped . | . . . . . . . . . . . . . . . . . . . . . . . . . . . Power Chain Reactions 2 | . . . . . . . . . . . 1 . . . . . . . . 1 . . . . . . Alert | -11 -10 -10 -8 -8 -8 -8 -7 -7 -7 -7 -6 -6 -6 -6 -6 -5 -5 -5 -5 -5 -4 -4 -4 -4 -3 -3 ------- Run | Yrd Mat Sub Mat Gar Mat Gar Fac Low Low Dat Pro Fac Low Low Zio Pro Fac Gar Fac Gar Fac Gar Fac Arm Res Qua Maximum Alert Level 5 | . . . 1 2 1 3 2 . . . . . . . . . . 3 3 5 3 4 3 4 4 3 Low Security (%) 19 | 100 100 . 46 . . 12 . . . . . 100 . . . . 100 30 . . . . . 28 . . Level 1 25 | . . . 53 64 100 36 70 . . . . . . . . . . 9 17 . . . 23 34 . . Level 2 23 | . . . . 35 . 33 29 . . . . . . . . . . 52 36 3 . 4 64 16 57 . Level 3 21 | . . . . . . 16 . . . . . . . . . . . 7 46 27 100 43 11 18 23 100 Level 4 9 | . . . . . . . . . . . . . . . . . . . . 59 . 51 . 1 18 . Level 5 . | . . . . . . . . . . . . . . . . . . . . 9 . . . . . . High Security . | . . . . . . . . . . . . . . . . . . . . . . . . . . . Max Security . | . . . . . . . . . . . . . . . . . . . . . . . . . . . Peak Influence 1721 | . 165 . 378 561 323 869 547 . . . . 41 . . . . 146 739 995 1721 998 1509 791 1136 1381 814 Initial 903 | . . . 17 240 273 148 455 . . . . . . . . . 6 71 387 686 903 683 791 197 594 774 Average 550 | . 111 . 215 384 259 457 383 . . . . 4 . . . . 47 399 674 1200 894 1095 497 421 792 782 Influence Increases 14090 | . 231 240 798 321 361 871 615 100 255 . 66 184 195 5 . 320 423 768 1216 1125 695 1036 520 1839 1816 90 Destroy 0b10 Robot/C 7240 | . 160 200 520 . 240 480 320 80 220 . 40 80 80 . . 200 160 420 520 560 360 420 260 920 920 80 Destroy 0b10 Robot/NC 280 | . 10 . 30 . . 5 10 10 . . 10 5 . 5 . . 25 10 15 . 15 15 30 20 65 . Destroy Leader 1230 | . 30 10 116 . 70 20 72 10 20 . . 32 10 . . 30 64 30 114 30 80 30 102 196 154 10 Allied During Kill 654 | . . . . . 36 20 . . . . 1 4 . . . . . 72 53 40 62 36 10 218 102 . Trap Triggered on 0b10 20 | . . . . . . . . . . . . . . . . . . . . . . 20 . . . . Successful Hack 305 | . 6 . 25 21 13 14 40 . . . . . . . . . 22 . 85 . . . 42 16 21 . Disable Machine 690 | . 15 . 45 . . 15 45 . . . . . . . . . 15 30 135 . 60 30 15 180 105 . Anti-Garrison Action 1350 | . . . . 300 . 150 . . . . . . . . . . . 150 150 300 . 300 . . . . Destroy Structure 1301 | . 10 . 62 . 2 167 38 . . . . 3 . . . . 2 56 144 90 118 35 16 274 284 . Partial Spotted 60 | . . . . . . . . . . . . . . . . . . . . . . . 15 15 30 . Lose Combat Pursuer 960 | . . 30 . . . . 90 . 15 . 15 60 105 . . 90 135 . . 105 . 150 30 . 135 . Influence Decreases 13336 | . 110 327 462 130 694 230 988 406 391 54 66 154 225 5 . 310 331 131 975 384 1440 503 1626 1110 1570 714 Entered New Map 5133 | . . 59 17 130 288 80 414 184 37 54 . . 12 . . . 4 31 352 294 818 293 718 206 538 604 Time Decay 5796 | . 110 218 435 . 326 . 514 222 294 . 66 82 188 5 . 290 327 . 583 . 422 . 518 634 522 40 Lost Part 1147 | . . 50 10 . . 30 60 . 60 . . 32 25 . . 20 . 60 . 50 60 150 20 190 260 70 Lost Ally 960 | . . . . . 80 120 . . . . . 40 . . . . . 40 40 40 140 60 220 80 100 . Purge Threat 300 | . . . . . . . . . . . . . . . . . . . . . . . 150 . 150 . Squads Dispatched 60 | . 3 . 3 . 3 . 5 . 1 . . 3 . . . . 3 . 10 . 9 . 6 5 8 1 Investigation 8 | . 1 . . . 1 . 1 . . . . . . . . . 1 . 2 . . . 2 . . . Extermination 19 | . . . . . . . 3 . . . . . . . . . 2 . 4 . 2 . 1 4 3 . Reinforcement 18 | . 2 . . . 2 . . . . . . 2 . . . . . . . . 4 . 3 . 4 1 Assault 7 | . . . . . . . 1 . 1 . . . . . . . . . 3 . . . . 1 1 . Garrison 8 | . . . 3 . . . . . . . . 1 . . . . . . 1 . 3 . . . . . Intercept . | . . . . . . . . . . . . . . . . . . . . . . . . . . . Searches Triggered . | . . . . . . . . . . . . . . . . . . . . . . . . . . . Data Miner Redirects 3 | . . . . . . . . . . . . . . . . . . . 2 . . . 1 . . . Construction Impeded 4 | . . . . . . . . . . . . . . . . . . . . . 2 . 2 . . . Haulers Reinforced 4 | . . . . . . . . . . . . . . . . . . . . . 1 . 1 . 2 . Active Scanning Responses . | . . . . . . . . . . . . . . . . . . . . . . . . . . . Cargo Convoy Interrupts 1 | . . . . . . . . . . . . . . . . . . . . . . . 1 . . . Stealth | -11 -10 -10 -8 -8 -8 -8 -7 -7 -7 -7 -6 -6 -6 -6 -6 -5 -5 -5 -5 -5 -4 -4 -4 -4 -3 -3 --------- Run | Yrd Mat Sub Mat Gar Mat Gar Fac Low Low Dat Pro Fac Low Low Zio Pro Fac Gar Fac Gar Fac Gar Fac Arm Res Qua Distress Signals 18 | . . . 3 . . . 1 . . . . 2 . . . . . . . . 3 . 2 3 2 2 Communications Jammed 145 | . . . . . . . 2 . . . 2 8 . . . . . . . . . . . 28 105 . Distress Signals 139 | . . . . . . . 2 . . . . 8 . . . . . . . . . . . 27 102 . Times Spotted 594 | . 10 22 41 . 17 27 34 4 12 . 6 17 10 . 1 16 22 27 35 41 31 36 42 64 70 9 Peak Tracking Total 12 | . 4 6 5 . 3 6 7 4 5 . 2 11 5 . 1 4 4 12 5 7 5 6 7 8 7 7 Tactical Retreats 42 | . . 2 . . . . 4 . 1 . 1 3 5 . . 5 4 . . 6 . 6 2 . 3 . Traps | -11 -10 -10 -8 -8 -8 -8 -7 -7 -7 -7 -6 -6 -6 -6 -6 -5 -5 -5 -5 -5 -4 -4 -4 -4 -3 -3 ------- Run | Yrd Mat Sub Mat Gar Mat Gar Fac Low Low Dat Pro Fac Low Low Zio Pro Fac Gar Fac Gar Fac Gar Fac Arm Res Qua Traps Triggered 15 | . . . 1 1 2 1 1 . . . . . . . . . . . 5 . . 1 2 . 1 . Indirectly . | . . . . . . . . . . . . . . . . . . . . . . . . . . . Trap Hack Attempts . | . . . . . . . . . . . . . . . . . . . . . . . . . . . Triggered . | . . . . . . . . . . . . . . . . . . . . . . . . . . . Disarmed . | . . . . . . . . . . . . . . . . . . . . . . . . . . . Reprogrammed . | . . . . . . . . . . . . . . . . . . . . . . . . . . . Reused 2 | . . . . . . . . . . . . . . . . . . . . . . 2 . . . . Traps Extracted . | . . . . . . . . . . . . . . . . . . . . . . . . . . . Installed 2 | . . . . . . . . . . . . . . . . . . . . . . 2 . . . . Triggered 2 | . . . . . . . . . . . . . . . . . . . . . . 2 . . . . Most Traps Carried 2 | . . . . . . . . . . . . . . . . . . . . . . 2 . . . . Machines | -11 -10 -10 -8 -8 -8 -8 -7 -7 -7 -7 -6 -6 -6 -6 -6 -5 -5 -5 -5 -5 -4 -4 -4 -4 -3 -3 ---------- Run | Yrd Mat Sub Mat Gar Mat Gar Fac Low Low Dat Pro Fac Low Low Zio Pro Fac Gar Fac Gar Fac Gar Fac Arm Res Qua Machines Disabled 64 | . 1 1 3 . . 4 3 . . . . . . . . . 1 6 10 4 4 6 2 12 7 . Max in Single Turn 5 | . 1 1 1 . . 1 2 . . . . . . . . . 1 1 5 1 2 1 1 2 2 . Garrison Access 6 | . . . . . . . . . . . . 1 . . . . 1 . 1 . . . 1 . 2 . Garrison Relay 13 | . . . . . . 3 . . . . . . . . . . . 2 . 4 . 4 . . . . Machines Repaired . | . . . . . . . . . . . . . . . . . . . . . . . . . . . Machines Dismantled . | . . . . . . . . . . . . . . . . . . . . . . . . . . . Machines Sabotaged . | . . . . . . . . . . . . . . . . . . . . . . . . . . . Overloaded Fab Kills . | . . . . . . . . . . . . . . . . . . . . . . . . . . . Hacking | -11 -10 -10 -8 -8 -8 -8 -7 -7 -7 -7 -6 -6 -6 -6 -6 -5 -5 -5 -5 -5 -4 -4 -4 -4 -3 -3 --------- Run | Yrd Mat Sub Mat Gar Mat Gar Fac Low Low Dat Pro Fac Low Low Zio Pro Fac Gar Fac Gar Fac Gar Fac Arm Res Qua Machines Accessed 100 | . 3 . 12 4 7 1 6 1 1 3 . 5 2 . . . 11 2 10 1 6 1 9 7 8 . Terminals 52 | . 3 . 6 4 4 1 2 . . . . 3 . . . . 4 2 5 1 2 1 3 5 6 . Fabricators 8 | . . . . . . . 1 . . . . 1 . . . . 2 . 1 . . . 1 2 . . Repair Stations 12 | . . . 2 . 1 . 3 . . . . . . . . . 1 . 2 . . . 3 . . . Recycling Units 7 | . . . 2 . . . . . . . . . . . . . 2 . . . 2 . 1 . . . Scanalyzers 4 | . . . 1 . 1 . . . . . . . . . . . . . 1 . 1 . . . . . Garrison Access 10 | . . . 1 . 1 . . . . . . 1 . . . . 2 . 1 . 1 . 1 . 2 . Total Hacks 236 | . 6 . 31 8 26 2 20 1 1 26 . 8 2 . . . 27 4 25 1 10 1 16 8 13 . Successful 135 | . 3 . 22 2 18 1 7 1 1 26 . 6 2 . . . 15 . 13 . 3 . 8 2 5 . Failed 101 | . 3 . 9 6 8 1 13 . . . . 2 . . . . 12 4 12 1 7 1 8 6 8 . Catastrophic 23 | . . . 1 2 2 . 1 . . . . . . . . . 4 2 . 1 4 . 2 3 1 . Database Lockouts . | . . . . . . . . . . . . . . . . . . . . . . . . . . . Manual 80 | . 6 . 16 1 10 1 . . . . . 3 . . . . 10 . 13 1 4 . 6 . 9 . Terminals 110 | . 6 . 16 8 11 2 6 . . . . 4 . . . . 11 4 14 1 3 1 6 6 11 . Fabricators 14 | . . . . . . . 2 . . . . 3 . . . . 3 . 2 . . . 2 2 . . Repair Stations 36 | . . . 5 . 6 . 12 . . . . . . . . . 4 . 5 . . . 4 . . . Recycling Units 15 | . . . 5 . . . . . . . . . . . . . 6 . . . 2 . 2 . . . Scanalyzers 15 | . . . 4 . 7 . . . . . . . . . . . . . 1 . 3 . . . . . Garrison Access 16 | . . . 1 . 2 . . . . . . 1 . . . . 3 . 3 . 2 . 2 . 2 . Terminal Hacks 38 | . 2 . . 2 . 1 . 1 1 26 . 1 2 . . . . . . . . . 1 . 1 . Record 7 | . . . . . . . . . . 6 . . . . . . . . . . . . 1 . . . Part Schematic 13 | . . . . . . . . . . 13 . . . . . . . . . . . . . . . . Robot Schematic 4 | . . . . . . . . . . 4 . . . . . . . . . . . . . . . . Robot Analysis 2 | . 2 . . . . . . . . . . . . . . . . . . . . . . . . . Prototype ID Bank 3 | . . . . . . . . . . 3 . . . . . . . . . . . . . . . . Open Door 6 | . . . . 1 . . . 1 1 . . . 2 . . . . . . . . . . . 1 . Emergency Access Points 1 | . . . . . . 1 . . . . . . . . . . . . . . . . . . . . Terminal Index 1 | . . . . . . . . . . . . 1 . . . . . . . . . . . . . . Patrol Navigation 1 | . . . . 1 . . . . . . . . . . . . . . . . . . . . . . Fabricator Hacks 10 | . . . . . . . 2 . . . . 3 . . . . 1 . . . . . 2 2 . . Network Status 5 | . . . . . . . 1 . . . . 1 . . . . 1 . . . . . 1 1 . . Load Schematic 1 | . . . . . . . . . . . . 1 . . . . . . . . . . . . . . Build 4 | . . . . . . . 1 . . . . 1 . . . . . . . . . . 1 1 . . Repair Station Hacks 23 | . . . 4 . 4 . 5 . . . . . . . . . 4 . 4 . . . 2 . . . Scan Component 13 | . . . 2 . 2 . 4 . . . . . . . . . 2 . 2 . . . 1 . . . Repair 10 | . . . 2 . 2 . 1 . . . . . . . . . 2 . 2 . . . 1 . . . Recycling Unit Hacks 9 | . . . 4 . . . . . . . . . . . . . 4 . . . 1 . . . . . Process 2 | . . . 1 . . . . . . . . . . . . . 1 . . . . . . . . . Report Inventory 5 | . . . 2 . . . . . . . . . . . . . 2 . . . 1 . . . . . Retrieve Matter 2 | . . . 1 . . . . . . . . . . . . . 1 . . . . . . . . . Scanalyzer 12 | . . . 4 . 7 . . . . . . . . . . . . . 1 . . . . . . . Insert Component 6 | . . . 2 . 3 . . . . . . . . . . . . . 1 . . . . . . . Analyze 6 | . . . 2 . 4 . . . . . . . . . . . . . . . . . . . . . Garrison Access Hacks 15 | . . . 1 . 2 . . . . . . 1 . . . . 3 . 2 . 2 . 2 . 2 . Unlock Access 5 | . . . 1 . 1 . . . . . . . . . . . 1 . 1 . 1 . . . . . Seal Access 5 | . . . . . . . . . . . . 1 . . . . 1 . . . . . 1 . 2 . Coupler Status 5 | . . . . . 1 . . . . . . . . . . . 1 . 1 . 1 . 1 . . . Unauthorized Hacks 28 | . 1 . 9 . 5 . . . . . . 1 . . . . 3 . 6 . . . 1 . 2 . Terminals 26 | . 1 . 8 . 5 . . . . . . 1 . . . . 2 . 6 . . . 1 . 2 . Assimilate 2 | . . . 1 . 1 . . . . . . . . . . . . . . . . . . . . . Botnet 3 | . . . 1 . 1 . . . . . . . . . . . . . 1 . . . . . . . Operators 2 | . . . 1 . 1 . . . . . . . . . . . . . . . . . . . . . Skim 19 | . 1 . 5 . 2 . . . . . . 1 . . . . 2 . 5 . . . 1 . 2 . Fabricators . | . . . . . . . . . . . . . . . . . . . . . . . . . . . Repair Stations . | . . . . . . . . . . . . . . . . . . . . . . . . . . . Recycling Units 2 | . . . 1 . . . . . . . . . . . . . 1 . . . . . . . . . Recyclers 2 | . . . 1 . . . . . . . . . . . . . 1 . . . . . . . . . Scanalyzers . | . . . . . . . . . . . . . . . . . . . . . . . . . . . Garrison Access . | . . . . . . . . . . . . . . . . . . . . . . . . . . . Data Cores Recovered . | . . . . . . . . . . . . . . . . . . . . . . . . . . . Used . | . . . . . . . . . . . . . . . . . . . . . . . . . . . Hacking Detections 66 | . 2 . 8 1 4 1 6 . . . . 2 . . . . 8 2 8 1 4 1 7 5 6 . Full Trace Events 6 | . 1 . 1 . . . 1 . . . . . . . . . 1 1 . . . . 1 . . . Feedback Events . | . . . . . . . . . . . . . . . . . . . . . . . . . . . Feedback Blocked . | . . . . . . . . . . . . . . . . . . . . . . . . . . . Robot Schematics Acquired 5 | . . . . . . . . . . 4 . . . . . . . . . . . . . . . 1 Robots Built 3 | . . . . . . . . . . . . 3 . . . . . . . . . . . . . . Authchips 1 | . . . . . . . . . . . . 1 . . . . . . . . . . . . . . Time 134 | . . . . . . . . . . . . 134 . . . . . . . . . . . . . . Total Robot Build Rating 12 | . . . . . . . . . . . . 12 . . . . . . . . . . . . . . Part Schematics Acquired 22 | . . . 2 . 3 . . . . 13 . . . . . . . . . . . . . . . 4 Parts Built 5 | . . . . . . . 2 . . . . . . . . . . . . . . . 1 2 . . Authchips . | . . . . . . . . . . . . . . . . . . . . . . . . . . . Time 375 | . . . . . . . 84 . . . . . . . . . . . . . . . 222 69 . . Total Part Build Rating 35 | . . . . . . . 8 . . . . . . . . . . . . . . . 9 18 . . Parts Repaired 10 | . . . 2 . 2 . 1 . . . . . . . . . 2 . 2 . . . 1 . . . Time 343 | . . . 82 . 88 . 25 . . . . . . . . . 76 . 47 . . . 25 . . . Parts Recycled . | . . . . . . . . . . . . . . . . . . . . . . . . . . . Recycled Matter 175 | . . . 92 . . . . . . . . . . . . . 83 . . . . . . . . . Retrieved Matter 175 | . . . 92 . . . . . . . . . . . . . 83 . . . . . . . . . Retrieved Components . | . . . . . . . . . . . . . . . . . . . . . . . . . . . Parts Scanalyzed 5 | . . . 2 . 3 . . . . . . . . . . . . . . . . . . . . . Part Schematics Acquired 5 | . . . 2 . 3 . . . . . . . . . . . . . . . . . . . . . Parts Damaged . | . . . . . . . . . . . . . . . . . . . . . . . . . . . Bothacking | -11 -10 -10 -8 -8 -8 -8 -7 -7 -7 -7 -6 -6 -6 -6 -6 -5 -5 -5 -5 -5 -4 -4 -4 -4 -3 -3 ------------ Run | Yrd Mat Sub Mat Gar Mat Gar Fac Low Low Dat Pro Fac Low Low Zio Pro Fac Gar Fac Gar Fac Gar Fac Arm Res Qua Used RIF Installer 4 | . . . . 1 . 1 . . . . . . . . . . . 1 . 1 . . . . . . Coupler Efficiency 1 | . . . . . . . . . . . . . . . . . . 1 . . . . . . . . Hotswap 1 | . . . . . . 1 . . . . . . . . . . . . . . . . . . . . Autoassimilate 1 | . . . . . . . . . . . . . . . . . . . . 1 . . . . . . Robots Hacked 94 | . . . . . . . 6 . 2 . . . . . . . . 4 2 13 13 17 18 10 9 . Non-combat 26 | . . . . . . . 4 . 1 . . . . . . . . . 1 . 6 . 6 2 6 . Combat 68 | . . . . . . . 2 . 1 . . . . . . . . 4 1 13 7 17 12 8 3 . Autoassimilated 10 | . . . . . . . . . . . . . . . . . . . . . . 4 3 2 1 . Robot Hacks Applied 104 | . . . . . . . 7 . 2 . . . . . . . . 4 2 14 17 15 20 12 11 . parse_system 17 | . . . . . . . . . 1 . . . . . . . . 1 . . 7 1 2 3 2 . no_distress 4 | . . . . . . . . . . . . . . . . . . . 1 . . . 1 1 1 . generate_echo 2 | . . . . . . . 1 . . . . . . . . . . . . . . . . 1 . . find_chute 1 | . . . . . . . 1 . . . . . . . . . . . . . . . . . . . find_fabricator 2 | . . . . . . . . . . . . . . . . . . . . . 1 . . . 1 . drop_inventory 3 | . . . . . . . 1 . . . . . . . . . . . . . 1 . 1 . . . recall_reinforcements 2 | . . . . . . . . . . . . . . . . . . . . . 1 . . . 1 . find_recycling 3 | . . . . . . . 1 . . . . . . . . . . . . . 1 . . . 1 . ignore_parts 2 | . . . . . . . . . . . . . . . . . . . . . 1 . 1 . . . find_station 1 | . . . . . . . . . . . . . . . . . . . . . . . . 1 . . purge_threat 2 | . . . . . . . . . . . . . . . . . . . . . . . 1 . 1 . locate_traps 1 | . . . . . . . . . . . . . . . . . . . . . . . 1 . . . block_reporting 3 | . . . . . . . . . . . . . . . . . . . . . . . 1 . 2 . map_route 4 | . . . . . . . 1 . . . . . . . . . . . . . 1 . 1 1 . . find_shortcuts 3 | . . . . . . . . . . . . . . . . . . . . 2 . 1 . . . . find_garrison 1 | . . . . . . . . . . . . . . . . . . . . . . . 1 . . . reboot_propulsion 2 | . . . . . . . . . . . . . . . . . . . . . . 2 . . . . scatter_targeting 1 | . . . . . . . . . . . . . . . . . . . . . . 1 . . . . disrupt_area 4 | . . . . . . . . . . . . . . . . . . . . 3 . 1 . . . . overload_power 1 | . . . . . . . . . . . . . . . . . . . . . . . . . 1 . amplify_resonance 15 | . . . . . . . 1 . 1 . . . . . . . . 1 1 4 1 1 3 2 . . disable_weapons 5 | . . . . . . . 1 . . . . . . . . . . . . . . 3 1 . . . reboot_system 1 | . . . . . . . . . . . . . . . . . . . . . . 1 . . . . overwrite_iff 11 | . . . . . . . . . . . . . . . . . . 1 . . . 2 6 2 . . formatsys_high 13 | . . . . . . . . . . . . . . . . . . 1 . 5 3 2 . 1 1 . Relay Couplers Released 62 | . . . . . . 13 . . . . . 2 . . . . . 7 7 15 . 18 . . . . Machine Destruction 59 | . . . . . . 13 . . . . . 2 . . . . . 7 4 15 . 18 . . . . Programmers 3 | . . . . . . . . . . . . . . . . . . . 3 . . . . . . . Attached 25 | . . . . . . . 2 . 1 . . . 1 . . . . 2 . 6 5 5 1 1 1 . Fabnet Peak Effective % . | . . . . . . . . . . . . . . . . . . . . . . . . . . . Robots Rewired 24 | . . . . 6 . 6 . . 1 . . . . . . . . 2 . . . 3 . 6 . . Allies Hacked . | . . . . . . . . . . . . . . . . . . . . . . . . . . . Hacks Repelled . | . . . . . . . . . . . . . . . . . . . . . . . . . . . Allies | -11 -10 -10 -8 -8 -8 -8 -7 -7 -7 -7 -6 -6 -6 -6 -6 -5 -5 -5 -5 -5 -4 -4 -4 -4 -3 -3 -------- Run | Yrd Mat Sub Mat Gar Mat Gar Fac Low Low Dat Pro Fac Low Low Zio Pro Fac Gar Fac Gar Fac Gar Fac Arm Res Qua Total Allies 64 | . . . . 6 . 6 . . 1 . . 3 . . . . . 5 . 7 3 11 9 11 2 . Largest Group 8 | . . . . 6 6 6 . . 1 1 1 3 . . . . . 2 2 4 5 5 8 5 4 . Highest-Rated Group 346 | . . . . 90 90 96 . . 16 16 16 90 . . . . . 264 135 212 252 207 346 303 303 . Highest-Rated Ally 148 | . . . . 25 25 18 . . 16 16 16 30 . . . . . 148 99 95 142 51 56 142 142 . Total Orders 16 | . . . . . . 1 . . . . . . . . . . . 1 1 . . 2 2 5 4 . STAY 3 | . . . . . . . . . . . . . . . . . . . . . . 1 . 1 1 . FOLLOW 2 | . . . . . . . . . . . . . . . . . . . . . . 1 . 1 . . GUARD 9 | . . . . . . 1 . . . . . . . . . . . . . . . . 2 3 3 . AID 2 | . . . . . . . . . . . . . . . . . . 1 1 . . . . . . . Ally Attacks 442 | . . . . . 25 13 . . . . 8 12 . . . . . 56 21 50 41 30 37 79 70 . Total Damage 16520 | . . . . . 308 205 . . . . 110 343 . . . . . 2007 1617 1698 1112 1016 1043 4145 2916 . Kills 95 | . . . . . 2 4 . . . . 2 3 . . . . . 16 9 8 8 5 1 22 15 . Allies Corrupted 1 | . . . . . . . . . . . . . . . . . . . 1 . . . . . . . Allies Melted 1 | . . . . . . . . . . . . . . . . . . . . . . 1 . . . . Intel | -11 -10 -10 -8 -8 -8 -8 -7 -7 -7 -7 -6 -6 -6 -6 -6 -5 -5 -5 -5 -5 -4 -4 -4 -4 -3 -3 ------- Run | Yrd Mat Sub Mat Gar Mat Gar Fac Low Low Dat Pro Fac Low Low Zio Pro Fac Gar Fac Gar Fac Gar Fac Arm Res Qua Active Infowar (turns) 4808 | . . . . . . . 430 . . . 585 376 2 . . . 693 345 . . . . . 1143 1234 . A.S.S. 1 | . . . . . . . . . . . . . . . . . . . . . . . . . 1 . Terrain 1 | . . . . . . . . . . . . . . . . . 1 . . . . . . . . . Cloaking 2 | . . . . . . . . . . . . . 2 . . . . . . . . . . . . . Jamming 4804 | . . . . . . . 430 . . . 585 376 . . . . 692 345 . . . . . 1143 1233 . Robot Analysis Total 2 | . 2 . . . . . . . . . . . . . . . . . . . . . . . . . Derelict Logs Recovered 8 | . . 1 . . . . . 1 1 . 1 . 1 1 . 2 . . . . . . . . . . Drone Launches . | . . . . . . . . . . . . . . . . . . . . . . . . . . . Drone Recoveries . | . . . . . . . . . . . . . . . . . . . . . . . . . . . Exploration | -11 -10 -10 -8 -8 -8 -8 -7 -7 -7 -7 -6 -6 -6 -6 -6 -5 -5 -5 -5 -5 -4 -4 -4 -4 -3 -3 ------------- Run | Yrd Mat Sub Mat Gar Mat Gar Fac Low Low Dat Pro Fac Low Low Zio Pro Fac Gar Fac Gar Fac Gar Fac Arm Res Qua Turns Passed 24442 | 44 245 789 1278 985 722 1019 1400 466 651 149 853 509 390 246 526 881 1273 1029 1818 1305 1034 1634 1423 2234 1446 93 Spaces Moved 14320 | 40 189 592 681 720 359 508 826 293 388 76 385 342 627 233 281 584 802 561 883 600 612 903 779 1040 899 117 Core 660 | 2 . 1 22 . . . . . . . . 39 565 . . . . . . . . . . . 29 2 Treads 4157 | . . . . . . . . . . . 107 14 . . . . . 229 883 600 220 . 582 1040 482 . Legs 7448 | . . . 659 720 359 508 826 293 388 76 278 289 . . . 426 802 332 . . 392 903 197 . . . Wheels 818 | 38 189 591 . . . . . . . . . . . . . . . . . . . . . . . . Hover 734 | . . . . . . . . . . . . . 62 233 281 158 . . . . . . . . . . Flight 503 | . . . . . . . . . . . . . . . . . . . . . . . . . 388 115 Fastest Speed 39 | 50 90 90 123 130 130 130 127 125 125 195 195 50 50 60 120 120 120 120 170 166 100 105 120 146 39 39 Average Speed 132 | 88 90 99 142 130 131 130 129 142 128 195 207 120 51 96 174 122 120 143 170 167 127 126 138 156 112 39 Slowest Speed 480 | 100 90 300 300 130 200 130 130 200 200 195 240 320 150 240 240 190 120 180 250 170 245 192 190 480 225 50 Overloaded Moves . | . . . . . . . . . . . . . . . . . . . . . . . . . . . Propulsion Burnouts . | . . . . . . . . . . . . . . . . . . . . . . . . . . . Robots Hopped 3 | . . . . . . . . . . . . . . . . . . . . . . . . . 1 2 Potential Cave-ins . | . . . . . . . . . . . . . . . . . . . . . . . . . . . Cave-ins Triggered . | . . . . . . . . . . . . . . . . . . . . . . . . . . . Exploration Rate (%) 46 | 3 58 38 58 95 32 69 29 58 53 68 74 10 73 36 15 71 26 62 35 72 17 85 20 54 34 15 Regions Visited 26 Branch Regions 11 Pre-discovered Areas 3 | . . . 1 . . . . . . 1 . . . . . 1 . . . . . . . . . . Known Exits Taken 10 | . . . 1 . 1 . . 1 . . 1 . . . . . 1 . 1 . 1 . 1 1 1 . Unknown Exits Taken 11 | 1 1 1 . . . . 1 . 1 1 . 1 1 1 1 1 . . . . . . . . . . Scrap Searched 26 | . . 10 . . . . . 3 3 . 1 . 6 1 1 1 . . . . . . . . . . Spaces Dug 46 | . . . . . . . 2 . 18 . . 2 . . . . 1 . 1 2 5 . 1 8 6 . Terrain Destroyed 773 | . 15 42 84 . 1 45 39 23 112 . 2 3 . . . 43 1 8 92 12 64 1 5 60 121 . Melee 25 | . . . . . . . 2 . 18 . . 2 . . . . 1 . . . . . . . 2 . Projectile 148 | . . 3 5 . 1 . 2 . . . . 1 . . . 1 . 8 18 12 29 1 5 36 26 . AOE 600 | . 15 39 79 . . 45 35 23 94 . 2 . . . . 42 . . 74 . 35 . . 24 93 . Terrain Rammed . | . . . . . . . . . . . . . . . . . . . . . . . . . . . Walls Destroyed . | . . . . . . . . . . . . . . . . . . . . . . . . . . . Machines Disabled . | . . . . . . . . . . . . . . . . . . . . . . . . . . . Actions | -11 -10 -10 -8 -8 -8 -8 -7 -7 -7 -7 -6 -6 -6 -6 -6 -5 -5 -5 -5 -5 -4 -4 -4 -4 -3 -3 --------- Run | Yrd Mat Sub Mat Gar Mat Gar Fac Low Low Dat Pro Fac Low Low Zio Pro Fac Gar Fac Gar Fac Gar Fac Arm Res Qua Total 18046 | 45 240 708 912 759 532 691 1038 329 472 77 415 409 678 250 311 695 1048 696 1109 784 766 1264 1041 1463 1181 133 Wait 1356 | . 27 36 110 1 98 16 96 15 9 . . 24 13 13 22 65 166 17 113 31 20 156 94 116 97 1 Move 14292 | 39 188 591 681 719 359 507 825 292 387 75 384 341 626 232 280 583 802 560 882 599 612 902 778 1039 896 113 Hop 3 | . . . . . . . . . . . . . . . . . . . . . . . . . 1 2 Pick Up 193 | . 2 2 8 4 10 7 5 1 3 . 1 5 5 . 3 . 4 2 13 17 14 25 23 32 7 . Fast Attach 219 | 6 3 8 14 . 4 5 11 5 5 1 3 5 9 1 2 6 9 15 18 8 11 11 22 22 15 . Attach 122 | . . 1 6 . 1 5 3 . 2 . . 3 4 1 . 4 1 2 5 7 9 13 7 25 21 2 Detach 39 | . 1 2 4 . 2 1 . 1 1 . 1 . 1 . . 1 1 1 5 2 . 3 3 4 5 . Swap 194 | . 3 8 17 8 8 12 18 1 8 . 3 4 . . . 2 8 2 4 12 13 13 7 24 19 . Drop 263 | . 1 9 14 6 7 7 11 2 3 1 4 9 8 . 1 1 12 12 14 17 17 21 33 37 16 . Fire 1084 | . 15 51 55 . 36 130 54 12 11 . 12 12 7 . . 6 4 76 46 91 69 118 66 116 94 3 Melee 165 | . . . . 18 . . 9 . 31 . 2 5 3 3 3 27 41 9 . . . . . . 2 12 Ram 2 | . . . . . . . . . . . . . . . . . . . . . . . . . 2 . Kick 11 | . . . . . 5 . 6 . . . . . . . . . . . . . . . . . . . Crush 22 | . . . . . . . . . . . . . . . . . . . 9 . 1 . 4 3 5 . Escape Stasis 4 | . . . . . . . . . . . . . . . . . . . . . . . 4 . . . Rewire 65 | . . . . 2 . . . . 12 . 5 . 2 . . . . . . . . . . 44 . . Trap 2 | . . . . . . . . . . . . . . . . . . . . . . 2 . . . . Miscellaneous 10 | . . . 3 1 2 1 . . . . . 1 . . . . . . . . . . . 1 1 . Route ------- -11/Scrapyard -10/Materials (discovered 3 exits: [*Mat x2] / [*Sub]) -10/Subcaves (discovered 3 exits: *Mat x2 / [*Rec]) -8/Materials (discovered 2 exits: *Fac / Gar) -8/Garrison (discovered 3 exits: *Mat x3) -8/Materials -8/Garrison (discovered 2 exits: *Fac x2) -7/Factory (discovered 3 exits: Fac x2 / *Low) -7/Lower Caves -7/Lower Caves (discovered 2 exits: *Fac / *Dat) -7/Data Miner -6/Proximity Caves -6/Factory -6/Lower Caves -6/Lower Caves -6/Zion -5/Proximity Caves -5/Factory (discovered 2 exits: Fac / Gar) -5/Garrison (discovered 2 exits: *Fac x2) -5/Factory (discovered 7 exits: *Fac x4 / Upp x2 / Gar) -5/Garrison (discovered 2 exits: *Fac x2) -4/Factory (discovered 4 exits: Res / Upp / Arm / Gar) -4/Garrison (discovered 3 exits: *Fac x3) -4/Factory (discovered 2 exits: *Res / *Arm) -4/Armory (discovered 2 exits: *Res x2) -3/Research (discovered 2 exits: [*Res] / *Qua) -3/Quarantine History --------- Turn | Location | Event 13 | -11/Scrapyard | Discovered new exit (range 15) 45 | -11/Scrapyard | Entered Materials 145 | -10/Materials | Discovered new exit (range 7) 199 | -10/Materials | Discovered new exit (range 15) 281 | -10/Materials | Discovered new exit (range 11) 290 | -10/Materials | Entered Subcaves 291 | -10/Subcaves | Approached by a straggling Scientist 305 | -10/Subcaves | Discovered new exit (range 14) 308 | -10/Subcaves | Build established: Mutant 326 | -10/Subcaves | Shifting Twisted Machinery released Mak. Shrapnel Gun 347 | -10/Subcaves | Ambushed by angry Subdweller bent on revenge 348 | -10/Subcaves | Shifting Twisted Machinery released Mak. Laser 535 | -10/Subcaves | Discovered new exit (range 11) 538 | -10/Subcaves | Ambushed by Subdweller buried in earth 745 | -10/Subcaves | Disturbed a concealed Subdweller 758 | -10/Subcaves | Core integrity fell below 50% 904 | -10/Subcaves | Disturbed a concealed Subdweller 1058 | -10/Subcaves | Discovered new exit (range 5) 1065 | -10/Subcaves | Shifting Twisted Machinery released Piercing Trap 1079 | -10/Subcaves | Entered Materials 1079 | -8/Materials | Evolved 4 slots: Propulsion x1, Utility x3 1239 | -8/Materials | Garrison activated, responded to threat 1320 | -8/Materials | Destroyed 7 combat bots 1600 | -8/Materials | Repaired Mak. Light Armor Plating 1736 | -8/Materials | Repaired Hrd. Medium Armor Plating 1938 | -8/Materials | Discovered new exit (range 16) 2130 | -8/Materials | Learned 4 Factory zone layouts 2198 | -8/Materials | Learned location of 1 exit from Lower Caves 2258 | -8/Materials | Learned location of Lower Caves (-7) 2306 | -8/Materials | Learned Factory security intel 2343 | -8/Materials | Learned 8 Factory zone layouts 2357 | -8/Materials | Identified exit to Garrison 2357 | -8/Materials | Entered Garrison 2357 | -8/Garrison | Discovered recently destroyed garrison 2665 | -8/Garrison | Discovered new exit (range 12) 2762 | -8/Garrison | Build established: Commander-Mutant 2952 | -8/Garrison | Discovered new exit (range 9) 3049 | -8/Garrison | Discovered new exit (range 15) 3280 | -8/Garrison | Installed Relay Interface Framework 3342 | -8/Garrison | Entered Materials 3342 | -8/Materials | Accompanied by 6 allies 3525 | -8/Materials | Lost 3 allies 3581 | -8/Materials | Lost 3 allies 3780 | -8/Materials | Build established: Mutant 3826 | -8/Materials | Repaired Gauss Rifle 3871 | -8/Materials | Repaired Imp. Titanium Leg 4064 | -8/Materials | Identified exit to Garrison 4064 | -8/Materials | Entered Garrison 4102 | -8/Garrison | Expanded RIF knowledge: Hotswap 4180 | -8/Garrison | Triggered checkpoint 4236 | -8/Garrison | System corruption reached 10% 4356 | -8/Garrison | Garrison Relay disabled 4428 | -8/Garrison | Triggered checkpoint 4450 | -8/Garrison | Core integrity fell below 50% 4562 | -8/Garrison | Triggered checkpoint 4573 | -8/Garrison | Discovered new exit (range 10) 4683 | -8/Garrison | Garrison Relay disabled 4774 | -8/Garrison | Triggered checkpoint 4832 | -8/Garrison | Lost 4 allies 4838 | -8/Garrison | Triggered checkpoint 4852 | -8/Garrison | Core integrity fell below 20% 4981 | -8/Garrison | Triggered checkpoint 5051 | -8/Garrison | Garrison Relay disabled 5074 | -8/Garrison | Discovered new exit (range 8) 5083 | -8/Garrison | Entered Factory 5083 | -7/Factory | Evolved 2 slots: Propulsion x1, Utility x1 5084 | -7/Factory | Identified exit to Factory 5371 | -7/Factory | Build established: Bothacker-Mutant 5461 | -7/Factory | Repaired Lyr. Medium Armor Plating 5663 | -7/Factory | Fabricated Imp. Deuterium Engine? 6103 | -7/Factory | Discovered new exit (range 16) 6283 | -7/Factory | First assault squad dispatched 6483 | -7/Factory | Entered Lower Caves 6484 | -7/Lower Caves | Identified exit to Lower Caves 6510 | -7/Lower Caves | Lost 3 parts (1p2n) 6547 | -7/Lower Caves | Learned Factory stockpile data 6895 | -7/Lower Caves | Encountered a Warlord checkpoint 6949 | -7/Lower Caves | Entered another Lower Caves area 6949 | -7/Lower Caves | Discovered exit to Factory (range 8) 7209 | -7/Lower Caves | Found Alien Artifact 7422 | -7/Lower Caves | Attracted the attention of an 0b10 outpost 7481 | -7/Lower Caves | Lost 4 parts (1n1u2w) 7497 | -7/Lower Caves | Learned Factory trap positions 7549 | -7/Lower Caves | Discovered new exit (range 9) 7600 | -7/Lower Caves | Entered Data Miner 7600 | -7/Data Miner | Accompanied by 1 ally 7600 | -7/Data Miner | Discovered new exit (range 6) 7638 | -7/Data Miner | Met Data Miner 7671 | -7/Data Miner | Learned location of Section 7 (-3) 7671 | -7/Data Miner | Acquired the access code to Warlord's prototype stash 7706 | -7/Data Miner | Received God Mode back door access code from Data Miner 7716 | -7/Data Miner | Build established: Mutant 7749 | -7/Data Miner | Entered Proximity Caves 7749 | -6/Proximity Caves | Accompanied by 1 ally 8199 | -6/Proximity Caves | Attracted the attention of an 0b10 checkpoint 8201 | -6/Proximity Caves | Core integrity fell below 50% 8228 | -6/Proximity Caves | Learned Factory terminal intel 8354 | -6/Proximity Caves | System corruption reached 10% 8573 | -6/Proximity Caves | Discovered exit to Factory (range 12) 8602 | -6/Proximity Caves | Entered Factory 8602 | -6/Factory | Evolved 2 slots: Utility x2 8603 | -6/Factory | Loaded intel: 77 trap records 8605 | -6/Factory | Loaded intel: 28 terminal locations 8817 | -6/Factory | Fabricated L-41 Fighter (x3) 8889 | -6/Factory | Garrison activated, responded to threat 8953 | -6/Factory | Spotted B-75 Beast 9057 | -6/Factory | Lost 4 parts (2u2w) 9104 | -6/Factory | Discovered new exit (range 15) 9111 | -6/Factory | Entered Lower Caves 9126 | -6/Lower Caves | Lost 7 parts (1p3n2u1w) 9168 | -6/Lower Caves | Encountered a Warlord checkpoint 9303 | -6/Lower Caves | Core integrity fell below 50% 9338 | -6/Lower Caves | Learned Factory trap positions 9460 | -6/Lower Caves | Found Prototype Device 9469 | -6/Lower Caves | Murdered Warlord Statue 9499 | -6/Lower Caves | Discovered new exit (range 5) 9501 | -6/Lower Caves | Entered another Lower Caves area 9507 | -6/Lower Caves | Learned Factory garrison access intel 9585 | -6/Lower Caves | Encountered a Warlord checkpoint 9589 | -6/Lower Caves | Discovered new exit (range 8) 9616 | -6/Lower Caves | Identified Heart of Steel 9747 | -6/Lower Caves | Entered Zion 9822 | -6/Zion | System corruption cleaned by Quarantine Array 10084 | -6/Zion | Found Prototype Special Weapon 10086 | -6/Zion | Found Prototype Special Weapon 10119 | -6/Zion | Discovered new exit (range 14) 10226 | -6/Zion | RIF detected upon attempting to enter Zion 10226 | -6/Zion | Attacked by Zionites 10273 | -6/Zion | Entered Proximity Caves 10311 | -5/Proximity Caves | Learned location of 1 exit from Factory 10358 | -5/Proximity Caves | Build established: Derelict-Mutant 10414 | -5/Proximity Caves | Learned location of Warlord (-5) 10472 | -5/Proximity Caves | Spotted B-75 Beast 10475 | -5/Proximity Caves | Identified RU-N14's Throwing Claymores (x2) 10485 | -5/Proximity Caves | Destroyed B-75 Beast 10904 | -5/Proximity Caves | Build established: Mutant 10911 | -5/Proximity Caves | Attracted the attention of an 0b10 checkpoint 11129 | -5/Proximity Caves | Discovered new exit (range 10) 11154 | -5/Proximity Caves | Entered Factory 11154 | -5/Factory | Evolved 2 slots: Utility x2 11155 | -5/Factory | Identified exit to Factory 11156 | -5/Factory | Loaded intel: 100 trap records 11157 | -5/Factory | Loaded intel: 4 garrison access locations 11270 | -5/Factory | Build established: Derelict-Mutant 11638 | -5/Factory | Repaired Carbon-fiber Leg 11678 | -5/Factory | Repaired Carbon-fiber Leg 12351 | -5/Factory | Spotted B-75 Beast 12427 | -5/Factory | Identified exit to Garrison 12427 | -5/Factory | Entered Garrison 12498 | -5/Garrison | Expanded RIF knowledge: Coupler Efficiency 12515 | -5/Garrison | Garrison Relay disabled 12523 | -5/Garrison | Triggered checkpoint 12689 | -5/Garrison | Triggered checkpoint 12752 | -5/Garrison | Spotted B-75 Beast 12758 | -5/Garrison | Triggered checkpoint 12765 | -5/Garrison | Triggered checkpoint 12791 | -5/Garrison | Rewired B-86 Titan 12793 | -5/Garrison | Spotted B-90 Cyclops 12796 | -5/Garrison | Rewired B-90 Cyclops 12803 | -5/Garrison | Lost 4 parts (3u1w) 12805 | -5/Garrison | Destroyed B-90 Cyclops 12814 | -5/Garrison | Allies destroyed B-75 Beast 12898 | -5/Garrison | Heart of Steel transformed into Warbot 13119 | -5/Garrison | Triggered checkpoint 13143 | -5/Garrison | Garrison Relay disabled 13181 | -5/Garrison | Discovered new exit (range 11) 13206 | -5/Garrison | Build established: Scavenger-Mutant 13277 | -5/Garrison | Triggered checkpoint 13363 | -5/Garrison | Triggered checkpoint 13434 | -5/Garrison | Discovered new exit (range 9) 13456 | -5/Garrison | Entered Factory 13456 | -5/Factory | Accompanied by 2 allies (Warbot) 13564 | -5/Factory | Repaired Imp. Heavy Armor Plating 13609 | -5/Factory | Identified Core Expander 13610 | -5/Factory | Installed Core Expander, added new Weapon slot 13863 | -5/Factory | Allied Derelicts emerged from ambush trap array 14023 | -5/Factory | Discovered exit to Factory (range 10) 14070 | -5/Factory | Build established: Scavenger-Tank 14229 | -5/Factory | Repaired Med. Reflective Plating 14356 | -5/Factory | First assault squad dispatched 14572 | -5/Factory | Discovered exit to Factory (range 5) 14676 | -5/Factory | System corruption reached 10% 14684 | -5/Factory | Garrison activated, responded to threat 14737 | -5/Factory | Incoming assault squad redirected 14737 | -5/Factory | Incoming assault squad redirected 15056 | -5/Factory | Build established: Bothacker-Tank 15175 | -5/Factory | Identified exit to Upper Caves 15240 | -5/Factory | Learned location of 2 exits from Factory 15241 | -5/Factory | Learned Armory trap positions 15243 | -5/Factory | Identified exit to Garrison 15263 | -5/Factory | Learned Research terminal intel 15274 | -5/Factory | Entered Garrison 15309 | -5/Garrison | Expanded RIF knowledge: Autoassimilate 15322 | -5/Garrison | Triggered checkpoint 15372 | -5/Garrison | Garrison Relay disabled 15453 | -5/Garrison | Spotted B-75 Beast 15454 | -5/Garrison | Triggered checkpoint 15455 | -5/Garrison | Destroyed B-75 Beast 15628 | -5/Garrison | Discovered exit to Factory (range 13) 15866 | -5/Garrison | Triggered checkpoint 15922 | -5/Garrison | Lost 3 parts (1n2u) 15937 | -5/Garrison | Garrison Relay disabled 16036 | -5/Garrison | Triggered checkpoint 16053 | -5/Garrison | Garrison Relay disabled 16057 | -5/Garrison | Build established: Botlord-Tank 16288 | -5/Garrison | Found embedded Infiltrators 16324 | -5/Garrison | Triggered checkpoint 16351 | -5/Garrison | Garrison Relay disabled 16430 | -5/Garrison | Discovered exit to Factory (range 10) 16432 | -5/Garrison | Triggered checkpoint 16579 | -5/Garrison | Entered Factory 16579 | -4/Factory | Accompanied by 4 allies 16579 | -4/Factory | Evolved 2 slots: Utility x2 16580 | -4/Factory | Identified exit to Armory 16581 | -4/Factory | Identified exit to Upper Caves 16581 | -4/Factory | Identified exit to Research 16766 | -4/Factory | Lost 5 allies 17082 | -4/Factory | Lost 4 parts (1n2u1w) 17613 | -4/Factory | Identified exit to Garrison 17613 | -4/Factory | Entered Garrison 17669 | -4/Garrison | Triggered checkpoint 17757 | -4/Garrison | Garrison Relay disabled 17845 | -4/Garrison | Spotted B-86 Titan 17945 | -4/Garrison | Lost 6 parts (1p1n2u2w) 17995 | -4/Garrison | Destroyed B-86 Titan 18017 | -4/Garrison | Triggered checkpoint 18078 | -4/Garrison | Lost 3 parts (1p1n1w) 18214 | -4/Garrison | Discovered new exit (range 10) 18325 | -4/Garrison | Triggered checkpoint 18366 | -4/Garrison | System corruption reached 10% 18391 | -4/Garrison | Garrison Relay disabled 18619 | -4/Garrison | Triggered checkpoint 18697 | -4/Garrison | Triggered checkpoint 18868 | -4/Garrison | Discovered new exit (range 12) 18929 | -4/Garrison | Triggered checkpoint 18930 | -4/Garrison | Build established: Botlord-Gunner 18971 | -4/Garrison | Garrison Relay disabled 19103 | -4/Garrison | Triggered checkpoint 19126 | -4/Garrison | Garrison Relay disabled 19220 | -4/Garrison | Discovered new exit (range 10) 19247 | -4/Garrison | Entered Factory 19247 | -4/Factory | Accompanied by 5 allies 19412 | -4/Factory | Spotted B-86 Titan 19458 | -4/Factory | Destroyed B-86 Titan 19471 | -4/Factory | Found Hvy. Reflective Plating 19476 | -4/Factory | Lost 8 allies 19480 | -4/Factory | Fabricated Exp. Biometal Heavy Treads? 19586 | -4/Factory | Found Quantum Capacitor 19802 | -4/Factory | Build established: Botlord-Tank 19884 | -4/Factory | Repaired Hvy. Reflective Plating 19905 | -4/Factory | Discovered exit to Research (range 8) 20357 | -4/Factory | Cargo convoy interrupted 20357 | -4/Factory | P-70 Sage assimilated allied G-67 Veteran 20385 | -4/Factory | Incoming investigation squad redirected 20549 | -4/Factory | Discovered exit to Armory (range 12) 20670 | -4/Factory | Entered Armory 20671 | -4/Armory | Loaded intel: 40 trap records 21041 | -4/Armory | Core integrity fell below 50% 21067 | -4/Armory | Lost 7 parts (1p1n4u1w) 21380 | -4/Armory | Fabricated Enh. Nova Cannon? 21578 | -4/Armory | Lost 4 parts (1p3u) 21807 | -4/Armory | Discovered exit to Research (range 10) 21973 | -4/Armory | Spotted B-86 Titan 22392 | -4/Armory | Build established: Bothacker-Tank 22670 | -4/Armory | First assault squad dispatched 22849 | -4/Armory | Found Unknown Launcher 22849 | -4/Armory | Identified Fusion Bomb Launcher 22898 | -4/Armory | Discovered exit to Research (range 4) 22904 | -4/Armory | Entered Research 22904 | -3/Research | Accompanied by 4 allies 22904 | -3/Research | Evolved 2 slots: Utility x2 22905 | -3/Research | Identified exit to Quarantine 22906 | -3/Research | Loaded intel: 22 terminal locations 23108 | -3/Research | Spotted B-86 Titan 23144 | -3/Research | Allies destroyed B-86 Titan 23272 | -3/Research | Spotted B-86 Titan 23301 | -3/Research | Destroyed B-86 Titan 23513 | -3/Research | Found Corrupted Prototype Device 23915 | -3/Research | Destroyed 7 combat bots 24015 | -3/Research | Lost 9 parts (1n4u4w) 24142 | -3/Research | Identified Active Sensor Suite 24149 | -3/Research | Destroyed 14 combat bots 24154 | -3/Research | First assault squad dispatched 24169 | -3/Research | Lost 13 parts (1p3n5u4w) 24190 | -3/Research | Core integrity fell below 50% 24345 | -3/Research | Discovered new exit (range 13) 24350 | -3/Research | Entered Quarantine 24405 | -3/Quarantine | System corruption reached 10% 24417 | -3/Quarantine | Scanned by Researcher 24427 | -3/Quarantine | Core integrity fell below 20% 24443 | -3/Quarantine | Destroyed by S-43 Plague with Heavy Machine Gun Last Messages --------------- 24416_ Field Propulsion Array destroyed. 24416_ Lgt. Quantum Reactor destroyed. 24417_ Held in stasis. 24417_ C-55 Analyst is analyzing... 24417_ ALERT: Encountered unknown unique technology, formulating response. 24421_ Held in stasis. 24422_ C-55 Analyst destroyed. 24423_ Extracted schematic archive: Diametric Drive. 24426_ Enh. Force Lance destroyed. 24429_ Impulse Thruster Array destroyed. 24429_ System corrupted: Hvy. Dispersion Rifle failed to cycle. 24431_ U UP9%VGRKFVZHFXAJEB8LUCTM&M 24431_ Destroyed Imp. Antigrav System. 24435_ Hvy. Dispersion Rifle destroyed. 24435_ Extracted schematic archive: Tesla Bomb Launcher. 24435_ Acquired 55 matter. 24435_ P-80 Master resets S-43 Plague, system corruption cleaned. 24437_ Acquired 31 matter. 24438_ Extracted schematic archive: Cld. Field Propulsion Drive. 24442_ K-01 Serf cleans the Field Manipulator. Map ----- +----------------------------------------------------+ | ?????????????????????????????????????????????????? | | ?????????????????????????????????????????????????? | | ?????????????????????????????????????????????????? | | ?????????????????????????????????????????????????? | | ?????????????????????????????????????????????????? | | ?????????????????????????????????????????????????? | | ?????????????????????????????????????????????????? | | ?????????????????????????????????????????????????? | | ?????????????????????????????????????????????????? | | ?????????????????????????????????????????????????? | | ?????????????????????????????????????????????????? | | #####????????????????????????????????????????????? | | #????????????????????????????????????????????? | | #????????????????????????????????????????????? | | #????????????????????????????????????????????? | | #???????????????????????? ???????????????????? | | #??????????????????????? ???????????????????? | | #??????????????????????? ????????????????????? | | #????????####?###+###### ????????????????????? | | #????????# ? ????????????????????? | | #????????# ???????????????????? | | #????????# """ """ """ ""???????????????? | | #????????# """" """" """" """???????????????? | | #????????# """" """" """" """??"????????????? | | #????????# """ """ """ """ """??????????? | | ###+###### k @ kA w ????????? | | u ????????? | | ????????? | | ?????????? | | cc ?????????? | | ??????????? | | c ??????????? | | === """ """""s""""" """"" """""u ??????????? | | == """"" """"" """"" """"" """""????????????? | | == """" """""p""""" """"" """??????????????? | | = ????????????? | | != [| [ ] ????????????? | | #+############/##################????????????????? | | # $* #???????????????????????????? | | # = """ #???????????????????????????? | | " # =""" #???????????????????????????? | | "" # """ R" #???????????????????????????? | | &" # """ """ #???????????????????????????? | | "" # """ "" #???????????????????????????? | | # #???????????????????????????? | | ######################???????????????????????????? | | ?????????????????????????????????????????????????? | | ?????????????????????????????????????????????????? | | ?????????????????????????????????????????????????? | | ?????????????????????????????????????????????????? | +----------------------------------------------------+ Best States ------------- Heat Dissipation 98 Coolant Potential 100 Energy Generation 31 Energy Capacity 675 Matter Stores 300 Matter Capacity 350 Sight Range 16 Terrain Scan Density 10 Jamming Range 16 Cloak Strength 3 Power Amplification 30 Additional Mass Support 6 Base Temperature (-) 200 Armor Coverage 2100 Resistance: KI 25 Resistance: TH 25 Resistance: EM 15 Core Shielding 30 Weapon Shielding 66 Point Defense Rating 80 Evasion (%) 74 Targeting Accuracy 8 Melee Accuracy 6 Target Analysis 6 Core Analysis 6 Recoil Reduction 4 Matter Filtering 30 Particle Charging 25 Salvage Targeting 2 Offensive Hacking 12 Relay Coupler Types 9 Relay Coupler Value 271 Authchip Count 1 Item Schematics ----------------- Multitool | -8/Materials | Scanalyzed Hrd. Medium Armor Plating | -8/Materials | Scanalyzed Gauss Rifle | -8/Materials | Scanalyzed Imp. Titanium Leg | -8/Materials | Scanalyzed Imp. Datajack | -8/Materials | Scanalyzed Combat Drone Bay | -7/Data Miner | Free Lgt. Regenerative Plating | -7/Data Miner | Free Cld. Aerolev Unit | -7/Data Miner | Free Gravity Neutralizer | -7/Data Miner | Free Antimatter Cannon | -7/Data Miner | Free Cmb. Gravmag System | -7/Data Miner | Free Mni. Drone Bay | -7/Data Miner | Free Hyp. Gauss Cannon | -7/Data Miner | Free Angular Momentum Engine | -7/Data Miner | Free Linear Gravjet | -7/Data Miner | Free Imp. Arc Projector | -7/Data Miner | Free Myomer Leg | -7/Data Miner | Free Adv. Thermal Shield | -7/Data Miner | Free Cld. Plasma Rifle | -3/Quarantine | Archive Diametric Drive | -3/Quarantine | Archive Tesla Bomb Launcher | -3/Quarantine | Archive Cld. Field Propulsion Drive | -3/Quarantine | Archive Robot Schematics ------------------ M-14 Sweeper | -7/Data Miner | Free S-27 Virus | -7/Data Miner | Free B-48 Gladiator | -7/Data Miner | Free L-41 Fighter | -7/Data Miner | Free R-06 Scavenger | -3/Quarantine | Archive Fabricated ------------ Imp. Deuterium Engine | x2 | -7/Factory | Preloaded L-41 Fighter | x3 | -6/Factory | Authchip Exp. Biometal Heavy Treads | x1 | -4/Factory | Preloaded Enh. Nova Cannon | x2 | -4/Armory | Preloaded Repaired ---------- Mak. Light Armor Plating | 20% | -8/Materials Hrd. Medium Armor Plating | 65% | -8/Materials Gauss Rifle | 46% | -8/Materials Imp. Titanium Leg | 56% | -8/Materials Lyr. Medium Armor Plating | 26% | -7/Factory Carbon-fiber Leg | 17% | -5/Factory Carbon-fiber Leg | 13% | -5/Factory Imp. Heavy Armor Plating | 38% | -5/Factory Med. Reflective Plating | 5% | -5/Factory Hvy. Reflective Plating | 16% | -4/Factory Alien Tech Used ----------------- Core Expander Achievements -------------- Giant Slayer Challenges ------------ None Game ------ Seed CoreKineticMachine Manual? 0 Play Time 07:42:34 Cumulative 249.1 hours Start 2025.05.17 @ 17:32:30 End 2025.05.18 @ 17:34:37 Sessions 3 Manual Loads 0 Difficulty Rogue Special Mode None Game No. 118 Rogue 75 Adventurer 43 Explorer 0 Win Type - Total 6 Types 4/0/1/0/0/0/0/1/0/0 Lore% 73 Gallery% 68 Achievement% 62 Wizard Run 0 Options --------- Layout 0 ASCII 0 Keyboard 0 Movement Mouse Keybinds 0 Fullscreen 1 Font 24/Smallcaps Map View 76x50 Zoom Use 0% Tactical HUD 1 Map Filters NONE Filters NONE Steam 1 RUN: 7f5fc454-e371-4079-acd3-6d987e920d78